[Event "Titled Tuesday Blitz September 13 Late 2022"]
[White "Bortnyk, Olexandr"]
[Black "Pranav, V"]
[WhiteFideId "14120828"]
[BlackFideId "25060783"]
[WhiteElo "2723"]
[BlackElo "2390"]
[Result "1-0"]
[Round "11"]
[TimeControl "180+1"]
[Date "2022.09.13"]
[WhiteClock "0:00:06"]
[BlackClock "0:00:02"]

1. e4 {[%clk 0:02:55]}  e5 {[%clk 0:02:59]} 2. Bc4 {[%clk 0:02:54]}  Nf6 {[%clk 0:02:59]} 3. d3 {[%clk 0:02:54]}  Nc6 {[%clk 0:02:58]} 4. Nc3 {[%clk 0:02:54]}  Bc5 {[%clk 0:02:59]} 5. Be3 {[%clk 0:02:52]}  Bb6 {[%clk 0:02:55]} 6. h3 {[%clk 0:02:50]}  d6 {[%clk 0:02:55]} 7. Qf3 {[%clk 0:02:48]}  Nd4 {[%clk 0:02:54]} 8. Bxd4 {[%clk 0:02:48]}  exd4 {[%clk 0:02:51]} 9. Nd5 {[%clk 0:02:47]}  Nxd5 {[%clk 0:02:50]} 10. Bxd5 {[%clk 0:02:48]}  O-O {[%clk 0:02:51]} 11. Ne2 {[%clk 0:02:47]}  Ba5+ {[%clk 0:02:47]} 12. Kf1 {[%clk 0:02:42]}  c6 {[%clk 0:02:39]} 13. Bb3 {[%clk 0:02:42]}  Bb6 {[%clk 0:02:38]} 14. g4 {[%clk 0:02:41]}  a5 {[%clk 0:02:35]} 15. a4 {[%clk 0:02:37]}  Bc5 {[%clk 0:02:31]} 16. h4 {[%clk 0:02:33]}  Be6 {[%clk 0:02:29]} 17. g5 {[%clk 0:02:25]}  Qd7 {[%clk 0:02:00]} 18. Nf4 {[%clk 0:02:18]}  Bxb3 {[%clk 0:01:59]} 19. cxb3 {[%clk 0:02:18]}  f5 {[%clk 0:02:00]} 20. Qh3 {[%clk 0:01:36]}  Rad8 {[%clk 0:01:48]} 21. Re1 {[%clk 0:01:31]}  Bb4 {[%clk 0:01:27]} 22. Re2 {[%clk 0:01:11]}  fxe4 {[%clk 0:01:25]} 23. Ne6 {[%clk 0:00:36]}  Rf3 {[%clk 0:01:09]} 24. Qg4 {[%clk 0:00:36]}  exd3 {[%clk 0:01:04]} 25. Re4 {[%clk 0:00:36]}  d5 {[%clk 0:00:09]} 26. Nxd8 {[%clk 0:00:34]}  Qxd8 {[%clk 0:00:05]} 27. Qxf3 {[%clk 0:00:31]}  dxe4 {[%clk 0:00:05]} 28. Qxe4 {[%clk 0:00:32]}  d2 {[%clk 0:00:06]} 29. Ke2 {[%clk 0:00:32]}  g6 {[%clk 0:00:05]} 30. h5 {[%clk 0:00:28]}  Qxg5 {[%clk 0:00:04]} 31. Qe8+ {[%clk 0:00:25]}  Kg7 {[%clk 0:00:05]} 32. h6+ {[%clk 0:00:22]}  Kf6 {[%clk 0:00:05]} 33. Qd8+ {[%clk 0:00:20]}  Kf5 {[%clk 0:00:05]} 34. Qd7+ {[%clk 0:00:12]}  Kf6 {[%clk 0:00:05]} 35. Qxd4+ {[%clk 0:00:11]}  Kf5 {[%clk 0:00:05]} 36. Qd7+ {[%clk 0:00:08]}  Ke5 {[%clk 0:00:03]} 37. Rh3 {[%clk 0:00:07]}  Bc5 {[%clk 0:00:01]} 38. Rf3 {[%clk 0:00:03]}  Qh5 {[%clk 0:00:01]} 39. Qxd2 {[%clk 0:00:03]}  Ke6 {[%clk 0:00:02]} 40. Qf4 {[%clk 0:00:03]}  Be7 {[%clk 0:00:01]} 41. Qf7+ {[%clk 0:00:02]}  Kd7 {[%clk 0:00:01]} 42. Qg7 {[%clk 0:00:02]}  Kd6 {[%clk 0:00:01]} 43. Qd4+ {[%clk 0:00:02]}  Kc7 {[%clk 0:00:01]} 44. Qe3 {[%clk 0:00:03]}  Bd6 {[%clk 0:00:01]} 45. Kd2 {[%clk 0:00:02]}  Qd5+ {[%clk 0:00:02]} 46. Kc2 {[%clk 0:00:02]}  b5 {[%clk 0:00:01]} 47. Qa7+ {[%clk 0:00:02]}  Kc8 {[%clk 0:00:01]} 48. Qa8+ {[%clk 0:00:02]}  Kc7 {[%clk 0:00:01]} 49. Qxa5+ {[%clk 0:00:03]}  Kb7 {[%clk 0:00:01]} 50. Qc3 {[%clk 0:00:03]}  bxa4 {[%clk 0:00:01]} 51. bxa4 {[%clk 0:00:04]}  Qe4+ {[%clk 0:00:01]} 52. Qd3 {[%clk 0:00:04]}  Qg4 {[%clk 0:00:01]} 53. a5 {[%clk 0:00:04]}  Bc5 {[%clk 0:00:01]} 54. Rf7+ {[%clk 0:00:04]}  Kc8 {[%clk 0:00:01]} 55. Qa6+ {[%clk 0:00:04]}  Kd8 {[%clk 0:00:01]} 56. Qa8+ {[%clk 0:00:04]}  Qc8 {[%clk 0:00:01]} 57. Qxc8+ {[%clk 0:00:05]}  Kxc8 {[%clk 0:00:02]} 58. Rxh7 {[%clk 0:00:06]} 1-0


[Site "https://www.chess.com"]

[Event "Titled Tuesday Blitz September 13 Late 2022"]
[White "Can, Melih Kaan"]
[Black "Winterberg, Lukas"]
[WhiteFideId "6317383"]
[BlackFideId "24622702"]
[WhiteElo "2029"]
[BlackElo "2349"]
[Result "0-1"]
[Round "11"]
[TimeControl "180+1"]
[Date "2022.09.13"]
[WhiteClock "0:00:14"]
[BlackClock "0:00:58"]

1. e4 {[%clk 0:03:00]}  e6 {[%clk 0:02:54]} 2. d4 {[%clk 0:03:00]}  d5 {[%clk 0:02:55]} 3. Nd2 {[%clk 0:02:59]}  c5 {[%clk 0:02:55]} 4. exd5 {[%clk 0:02:59]}  Qxd5 {[%clk 0:02:54]} 5. Ngf3 {[%clk 0:03:00]}  cxd4 {[%clk 0:02:54]} 6. Bc4 {[%clk 0:03:00]}  Qd7 {[%clk 0:02:54]} 7. O-O {[%clk 0:03:00]}  Nc6 {[%clk 0:02:55]} 8. Nb3 {[%clk 0:03:00]}  a6 {[%clk 0:02:55]} 9. Nbxd4 {[%clk 0:03:00]}  Nxd4 {[%clk 0:02:56]} 10. Nxd4 {[%clk 0:03:00]}  Qc7 {[%clk 0:02:56]} 11. Bb3 {[%clk 0:02:59]}  Nf6 {[%clk 0:02:55]} 12. Bg5 {[%clk 0:02:50]}  Bd6 {[%clk 0:02:51]} 13. h3 {[%clk 0:02:44]}  O-O {[%clk 0:02:48]} 14. Qf3 {[%clk 0:02:41]}  Bh2+ {[%clk 0:02:46]} 15. Kh1 {[%clk 0:02:40]}  Be5 {[%clk 0:02:47]} 16. c3 {[%clk 0:02:36]}  h6 {[%clk 0:02:47]} 17. Bh4 {[%clk 0:02:33]}  b6 {[%clk 0:02:39]} 18. Rfe1 {[%clk 0:01:56]}  Bb7 {[%clk 0:02:30]} 19. Qe2 {[%clk 0:01:55]}  Bxd4 {[%clk 0:02:21]} 20. cxd4 {[%clk 0:01:53]}  Qc6 {[%clk 0:02:08]} 21. f3 {[%clk 0:01:32]}  Nd5 {[%clk 0:02:07]} 22. Rac1 {[%clk 0:01:30]}  Qd6 {[%clk 0:02:05]} 23. Qe5 {[%clk 0:01:27]}  Qd7 {[%clk 0:01:45]} 24. Bxd5 {[%clk 0:01:02]}  Bxd5 {[%clk 0:01:40]} 25. Rc7 {[%clk 0:01:00]}  Qb5 {[%clk 0:01:37]} 26. Qg3 {[%clk 0:00:50]}  Kh7 {[%clk 0:01:28]} 27. Re5 {[%clk 0:00:37]}  Qxb2 {[%clk 0:01:16]} 28. Qf4 {[%clk 0:00:32]}  Rac8 {[%clk 0:00:57]} 29. Rxf7 {[%clk 0:00:28]}  Qc1+ {[%clk 0:00:56]} 30. Qxc1 {[%clk 0:00:14]}  Rxc1+ {[%clk 0:00:57]} 31. Kh2 {[%clk 0:00:14]}  Rxf7 {[%clk 0:00:58]} 0-1


[Site "https://www.chess.com"]

[Event "Titled Tuesday Blitz September 13 Late 2022"]
[White "Fishbein, Alexander"]
[Black "Wan, Joseph"]
[WhiteFideId "2000377"]
[BlackFideId "2069890"]
[WhiteElo "2410"]
[BlackElo "2198"]
[Result "1/2-1/2"]
[Round "11"]
[TimeControl "180+1"]
[Date "2022.09.13"]
[WhiteClock "0:00:09"]
[BlackClock "0:00:12"]

1. e4 {[%clk 0:03:00]}  e6 {[%clk 0:02:59]} 2. d4 {[%clk 0:03:00]}  d5 {[%clk 0:02:59]} 3. exd5 {[%clk 0:03:00]}  exd5 {[%clk 0:02:59]} 4. Nf3 {[%clk 0:03:01]}  Nf6 {[%clk 0:02:59]} 5. Bd3 {[%clk 0:03:00]}  c5 {[%clk 0:02:59]} 6. dxc5 {[%clk 0:02:59]}  Bxc5 {[%clk 0:02:53]} 7. O-O {[%clk 0:02:59]}  O-O {[%clk 0:02:48]} 8. Nc3 {[%clk 0:02:59]}  h6 {[%clk 0:02:46]} 9. h3 {[%clk 0:02:58]}  Nc6 {[%clk 0:02:42]} 10. Bf4 {[%clk 0:02:58]}  Re8 {[%clk 0:02:33]} 11. Qd2 {[%clk 0:02:56]}  Bb4 {[%clk 0:02:22]} 12. a3 {[%clk 0:02:54]}  Bf8 {[%clk 0:02:17]} 13. Rfe1 {[%clk 0:02:51]}  Be6 {[%clk 0:02:17]} 14. Rad1 {[%clk 0:02:46]}  a6 {[%clk 0:02:12]} 15. Ne5 {[%clk 0:02:45]}  Rc8 {[%clk 0:02:11]} 16. Nxc6 {[%clk 0:02:43]}  Rxc6 {[%clk 0:02:12]} 17. Be5 {[%clk 0:02:42]}  Bd6 {[%clk 0:02:11]} 18. Bxd6 {[%clk 0:02:39]}  Qxd6 {[%clk 0:02:08]} 19. Ne2 {[%clk 0:02:38]}  Bd7 {[%clk 0:02:08]} 20. Nd4 {[%clk 0:02:36]}  Rcc8 {[%clk 0:02:07]} 21. c3 {[%clk 0:02:33]}  Rxe1+ {[%clk 0:02:05]} 22. Rxe1 {[%clk 0:02:33]}  Re8 {[%clk 0:02:06]} 23. Rxe8+ {[%clk 0:02:32]}  Bxe8 {[%clk 0:02:01]} 24. Nf5 {[%clk 0:02:31]}  Qe5 {[%clk 0:02:00]} 25. Qe3 {[%clk 0:02:31]}  Qxe3 {[%clk 0:01:59]} 26. Nxe3 {[%clk 0:02:31]}  Kf8 {[%clk 0:01:59]} 27. g4 {[%clk 0:02:26]}  Bd7 {[%clk 0:01:57]} 28. f4 {[%clk 0:02:24]}  Ke7 {[%clk 0:01:57]} 29. Kf2 {[%clk 0:02:24]}  Kd6 {[%clk 0:01:57]} 30. Kg3 {[%clk 0:02:14]}  g6 {[%clk 0:01:43]} 31. h4 {[%clk 0:02:00]}  h5 {[%clk 0:01:27]} 32. g5 {[%clk 0:01:57]}  Ne4+ {[%clk 0:01:21]} 33. Bxe4 {[%clk 0:01:54]}  dxe4 {[%clk 0:01:22]} 34. Kf2 {[%clk 0:01:49]}  Kc5 {[%clk 0:01:08]} 35. b4+ {[%clk 0:01:37]}  Kb5 {[%clk 0:00:59]} 36. Nd5 {[%clk 0:01:37]}  Bc6 {[%clk 0:00:40]} 37. Ne7 {[%clk 0:01:36]}  Ka4 {[%clk 0:00:31]} 38. Ke3 {[%clk 0:01:35]}  Bd7 {[%clk 0:00:18]} 39. Kxe4 {[%clk 0:01:28]}  Kxa3 {[%clk 0:00:18]} 40. Kd4 {[%clk 0:01:28]}  Kb3 {[%clk 0:00:17]} 41. Nd5 {[%clk 0:01:27]}  Bf5 {[%clk 0:00:16]} 42. Ne3 {[%clk 0:01:25]}  Be6 {[%clk 0:00:15]} 43. Nf1 {[%clk 0:01:20]}  Bf5 {[%clk 0:00:15]} 44. Nd2+ {[%clk 0:01:19]}  Kc2 {[%clk 0:00:15]} 45. Nc4 {[%clk 0:01:19]}  Be6 {[%clk 0:00:14]} 46. Nd6 {[%clk 0:01:18]}  b6 {[%clk 0:00:12]} 47. Nb7 {[%clk 0:00:50]}  Kb3 {[%clk 0:00:11]} 48. Kd3 {[%clk 0:00:22]}  Bc4+ {[%clk 0:00:10]} 49. Kd4 {[%clk 0:00:21]}  Be6 {[%clk 0:00:11]} 50. Kd3 {[%clk 0:00:17]}  Bf5+ {[%clk 0:00:11]} 51. Kd2 {[%clk 0:00:17]}  Be6 {[%clk 0:00:12]} 52. Kd3 {[%clk 0:00:09]} 1/2-1/2


[Site "https://www.chess.com"]

[Event "Titled Tuesday Blitz September 13 Late 2022"]
[White "Indjic, Aleksandar"]
[Black "Tari, Aryan"]
[WhiteFideId "911925"]
[BlackFideId "1510045"]
[WhiteElo "2592"]
[BlackElo "2612"]
[Result "1-0"]
[Round "11"]
[TimeControl "180+1"]
[Date "2022.09.13"]
[WhiteClock "0:00:39"]
[BlackClock "0:00:04"]

1. d4 {[%clk 0:02:54]}  d5 {[%clk 0:03:00]} 2. Nf3 {[%clk 0:02:54]}  Nf6 {[%clk 0:03:00]} 3. Bf4 {[%clk 0:02:54]}  c5 {[%clk 0:02:57]} 4. e3 {[%clk 0:02:55]}  Nc6 {[%clk 0:02:57]} 5. Nbd2 {[%clk 0:02:55]}  cxd4 {[%clk 0:02:43]} 6. exd4 {[%clk 0:02:54]}  Qb6 {[%clk 0:02:43]} 7. Nb3 {[%clk 0:02:48]}  Bf5 {[%clk 0:02:43]} 8. c3 {[%clk 0:02:44]}  e6 {[%clk 0:02:40]} 9. Be2 {[%clk 0:02:43]}  h6 {[%clk 0:02:39]} 10. h3 {[%clk 0:02:38]}  Be7 {[%clk 0:02:40]} 11. O-O {[%clk 0:02:37]}  O-O {[%clk 0:02:40]} 12. a4 {[%clk 0:02:36]}  a6 {[%clk 0:02:40]} 13. a5 {[%clk 0:02:35]}  Qd8 {[%clk 0:02:40]} 14. Ne5 {[%clk 0:02:35]}  Nxe5 {[%clk 0:02:38]} 15. Bxe5 {[%clk 0:02:36]}  Nd7 {[%clk 0:02:37]} 16. Bg3 {[%clk 0:02:34]}  Rc8 {[%clk 0:02:27]} 17. Nc1 {[%clk 0:02:25]}  Nb8 {[%clk 0:02:19]} 18. Bxb8 {[%clk 0:02:25]}  Rxb8 {[%clk 0:02:19]} 19. Bd3 {[%clk 0:02:25]}  Be4 {[%clk 0:01:51]} 20. Qe2 {[%clk 0:02:20]}  Bxd3 {[%clk 0:01:50]} 21. Nxd3 {[%clk 0:02:19]}  Qc7 {[%clk 0:01:51]} 22. g3 {[%clk 0:02:15]}  Rfc8 {[%clk 0:01:49]} 23. h4 {[%clk 0:02:13]}  Qc4 {[%clk 0:01:47]} 24. Rfe1 {[%clk 0:02:08]}  Bf6 {[%clk 0:01:47]} 25. Qf3 {[%clk 0:02:07]}  b6 {[%clk 0:01:38]} 26. axb6 {[%clk 0:02:06]}  Rxb6 {[%clk 0:01:39]} 27. Kg2 {[%clk 0:02:05]}  Rcb8 {[%clk 0:01:34]} 28. Ra5 {[%clk 0:01:54]}  Rb5 {[%clk 0:01:11]} 29. Raa1 {[%clk 0:01:41]}  Rb3 {[%clk 0:01:09]} 30. Re3 {[%clk 0:01:41]}  Qb5 {[%clk 0:00:56]} 31. Rh1 {[%clk 0:01:33]}  Qe8 {[%clk 0:00:33]} 32. g4 {[%clk 0:01:33]}  Qe7 {[%clk 0:00:32]} 33. g5 {[%clk 0:01:24]}  hxg5 {[%clk 0:00:32]} 34. hxg5 {[%clk 0:01:25]}  Bxg5 {[%clk 0:00:33]} 35. Qh5 {[%clk 0:01:24]}  Bh6 {[%clk 0:00:16]} 36. Rg3 {[%clk 0:01:24]}  Qf6 {[%clk 0:00:16]} 37. Qxh6 {[%clk 0:01:22]}  Qxh6 {[%clk 0:00:15]} 38. Rxh6 {[%clk 0:01:22]}  a5 {[%clk 0:00:15]} 39. Rh4 {[%clk 0:01:19]}  a4 {[%clk 0:00:15]} 40. Rgh3 {[%clk 0:01:01]}  f6 {[%clk 0:00:13]} 41. Nc5 {[%clk 0:00:50]}  Rxb2 {[%clk 0:00:12]} 42. Nxa4 {[%clk 0:00:51]}  R2b5 {[%clk 0:00:09]} 43. Nc5 {[%clk 0:00:51]}  Kf7 {[%clk 0:00:09]} 44. Re3 {[%clk 0:00:48]}  R8b6 {[%clk 0:00:08]} 45. Rh8 {[%clk 0:00:45]}  e5 {[%clk 0:00:05]} 46. Rd8 {[%clk 0:00:45]}  e4 {[%clk 0:00:02]} 47. Rxd5 {[%clk 0:00:43]}  Rb2 {[%clk 0:00:03]} 48. Nxe4 {[%clk 0:00:42]}  Rc2 {[%clk 0:00:04]} 49. Rd7+ {[%clk 0:00:41]}  Ke6 {[%clk 0:00:04]} 50. Nc5+ {[%clk 0:00:39]}  Kf5 {[%clk 0:00:04]} 51. Rxg7 {[%clk 0:00:39]} 1-0


[Site "https://www.chess.com"]

[Event "Titled Tuesday Blitz September 13 Late 2022"]
[White "Jorquera, Marcelo"]
[Black "Martins, Bruno Andre Leite"]
[WhiteFideId "3401197"]
[BlackFideId "1942255"]
[WhiteElo "2136"]
[BlackElo "2282"]
[Result "1/2-1/2"]
[Round "11"]
[TimeControl "180+1"]
[Date "2022.09.13"]
[WhiteClock "0:00:07"]
[BlackClock "0:00:02"]

1. e4 {[%clk 0:02:54]}  c5 {[%clk 0:02:56]} 2. Nc3 {[%clk 0:02:54]}  Nc6 {[%clk 0:02:54]} 3. g3 {[%clk 0:02:53]}  e6 {[%clk 0:02:52]} 4. Bg2 {[%clk 0:02:53]}  g6 {[%clk 0:02:52]} 5. d3 {[%clk 0:02:53]}  Nge7 {[%clk 0:02:49]} 6. Be3 {[%clk 0:02:52]}  d6 {[%clk 0:02:46]} 7. Qd2 {[%clk 0:02:51]}  h6 {[%clk 0:02:43]} 8. f4 {[%clk 0:02:40]}  Bg7 {[%clk 0:02:42]} 9. Nf3 {[%clk 0:02:41]}  Qa5 {[%clk 0:02:29]} 10. d4 {[%clk 0:02:36]}  cxd4 {[%clk 0:02:16]} 11. Nxd4 {[%clk 0:02:37]}  O-O {[%clk 0:02:13]} 12. O-O {[%clk 0:02:25]}  Nxd4 {[%clk 0:01:52]} 13. Bxd4 {[%clk 0:02:23]}  Bxd4+ {[%clk 0:01:53]} 14. Qxd4 {[%clk 0:02:24]}  Qc5 {[%clk 0:01:53]} 15. Rad1 {[%clk 0:02:17]}  Nc6 {[%clk 0:01:53]} 16. Qf2 {[%clk 0:02:13]}  Rd8 {[%clk 0:01:34]} 17. Rd2 {[%clk 0:02:09]}  Kf8 {[%clk 0:01:26]} 18. Rfd1 {[%clk 0:02:07]}  Ke7 {[%clk 0:01:22]} 19. Kh1 {[%clk 0:01:42]}  Qxf2 {[%clk 0:01:17]} 20. Rxf2 {[%clk 0:01:41]}  a6 {[%clk 0:01:14]} 21. Rfd2 {[%clk 0:01:22]}  b5 {[%clk 0:01:01]} 22. e5 {[%clk 0:01:18]}  d5 {[%clk 0:00:59]} 23. Ne2 {[%clk 0:01:12]}  Bb7 {[%clk 0:00:53]} 24. Nd4 {[%clk 0:01:11]}  Rac8 {[%clk 0:00:49]} 25. Nxc6+ {[%clk 0:01:03]}  Rxc6 {[%clk 0:00:49]} 26. c3 {[%clk 0:01:01]}  a5 {[%clk 0:00:33]} 27. Rd4 {[%clk 0:00:56]}  Rc4 {[%clk 0:00:32]} 28. Bf1 {[%clk 0:00:52]}  Rxd4 {[%clk 0:00:31]} 29. Rxd4 {[%clk 0:00:51]}  Bc6 {[%clk 0:00:32]} 30. Kg1 {[%clk 0:00:47]}  Rb8 {[%clk 0:00:31]} 31. a3 {[%clk 0:00:46]}  f6 {[%clk 0:00:24]} 32. exf6+ {[%clk 0:00:39]}  Kxf6 {[%clk 0:00:25]} 33. Kf2 {[%clk 0:00:37]}  g5 {[%clk 0:00:22]} 34. Ke3 {[%clk 0:00:33]}  gxf4+ {[%clk 0:00:21]} 35. Rxf4+ {[%clk 0:00:29]}  Ke5 {[%clk 0:00:20]} 36. Rh4 {[%clk 0:00:28]}  b4 {[%clk 0:00:18]} 37. axb4 {[%clk 0:00:26]}  axb4 {[%clk 0:00:18]} 38. Rh5+ {[%clk 0:00:20]}  Kd6 {[%clk 0:00:18]} 39. Rxh6 {[%clk 0:00:20]}  bxc3 {[%clk 0:00:18]} 40. bxc3 {[%clk 0:00:21]}  Rb3 {[%clk 0:00:17]} 41. Kd2 {[%clk 0:00:16]}  Rb2+ {[%clk 0:00:17]} 42. Ke3 {[%clk 0:00:16]}  Rc2 {[%clk 0:00:16]} 43. Kd3 {[%clk 0:00:15]}  Rf2 {[%clk 0:00:13]} 44. Bh3 {[%clk 0:00:14]}  Bd7 {[%clk 0:00:13]} 45. Ke3 {[%clk 0:00:13]}  Rxh2 {[%clk 0:00:12]} 46. g4 {[%clk 0:00:11]}  Kc5 {[%clk 0:00:10]} 47. g5 {[%clk 0:00:11]}  Rc2 {[%clk 0:00:07]} 48. Kd3 {[%clk 0:00:10]}  Rh2 {[%clk 0:00:05]} 49. Bg4 {[%clk 0:00:08]}  Rxh6 {[%clk 0:00:05]} 50. gxh6 {[%clk 0:00:08]}  Be8 {[%clk 0:00:06]} 51. Bxe6 {[%clk 0:00:07]}  Bg6+ {[%clk 0:00:06]} 52. Ke3 {[%clk 0:00:07]}  Kc4 {[%clk 0:00:04]} 53. Kf4 {[%clk 0:00:07]}  Kxc3 {[%clk 0:00:04]} 54. Bxd5 {[%clk 0:00:07]}  Kd4 {[%clk 0:00:04]} 55. Be6 {[%clk 0:00:08]}  Bh7 {[%clk 0:00:02]} 56. Bf5 {[%clk 0:00:08]}  Bg8 {[%clk 0:00:02]} 57. Kg5 {[%clk 0:00:08]}  Ke5 {[%clk 0:00:02]} 58. Bg6 {[%clk 0:00:08]}  Ke6 {[%clk 0:00:02]} 59. h7 {[%clk 0:00:07]}  Bxh7 {[%clk 0:00:02]} 1/2-1/2


[Site "https://www.chess.com"]

[Event "Titled Tuesday Blitz September 13 Late 2022"]
[White "Keymer, Vincent"]
[Black "Bortnyk, Mykola"]
[WhiteFideId "12940690"]
[BlackFideId "14120836"]
[WhiteElo "2585"]
[BlackElo "2582"]
[Result "1/2-1/2"]
[Round "11"]
[TimeControl "180+1"]
[Date "2022.09.13"]
[WhiteClock "0:00:11"]
[BlackClock "0:00:14"]

1. Nf3 {[%clk 0:03:00]}  Nf6 {[%clk 0:02:55]} 2. c4 {[%clk 0:03:00]}  e6 {[%clk 0:02:54]} 3. Nc3 {[%clk 0:03:01]}  d5 {[%clk 0:02:54]} 4. e3 {[%clk 0:03:01]}  Be7 {[%clk 0:02:53]} 5. b3 {[%clk 0:03:01]}  c5 {[%clk 0:02:52]} 6. cxd5 {[%clk 0:02:53]}  Nxd5 {[%clk 0:02:50]} 7. Bb2 {[%clk 0:02:52]}  Nxc3 {[%clk 0:02:49]} 8. Bxc3 {[%clk 0:02:52]}  Bf6 {[%clk 0:02:49]} 9. Qc2 {[%clk 0:02:51]}  Nd7 {[%clk 0:02:38]} 10. Bd3 {[%clk 0:02:32]}  Bxc3 {[%clk 0:02:33]} 11. dxc3 {[%clk 0:02:28]}  Nf6 {[%clk 0:02:25]} 12. O-O-O {[%clk 0:02:27]}  Qb6 {[%clk 0:02:07]} 13. Ne5 {[%clk 0:02:11]}  Bd7 {[%clk 0:02:02]} 14. g4 {[%clk 0:02:07]}  Bc6 {[%clk 0:01:59]} 15. e4 {[%clk 0:02:01]}  Nd7 {[%clk 0:01:53]} 16. Nc4 {[%clk 0:01:44]}  Qc7 {[%clk 0:01:52]} 17. Rhe1 {[%clk 0:01:40]}  b5 {[%clk 0:01:47]} 18. Ne3 {[%clk 0:01:34]}  Ne5 {[%clk 0:01:41]} 19. Be2 {[%clk 0:01:27]}  Ng6 {[%clk 0:01:40]} 20. Nd5 {[%clk 0:01:08]}  exd5 {[%clk 0:01:39]} 21. exd5 {[%clk 0:01:09]}  O-O {[%clk 0:01:39]} 22. dxc6 {[%clk 0:01:06]}  Qxc6 {[%clk 0:01:40]} 23. Bd3 {[%clk 0:01:06]}  Rae8 {[%clk 0:01:31]} 24. h4 {[%clk 0:01:04]}  c4 {[%clk 0:01:23]} 25. Be4 {[%clk 0:01:01]}  Qf6 {[%clk 0:01:19]} 26. h5 {[%clk 0:01:00]}  cxb3 {[%clk 0:01:20]} 27. axb3 {[%clk 0:00:58]}  Rc8 {[%clk 0:01:20]} 28. Re3 {[%clk 0:00:51]}  Nf4 {[%clk 0:01:12]} 29. Bxh7+ {[%clk 0:00:51]}  Kh8 {[%clk 0:01:13]} 30. Bf5 {[%clk 0:00:52]}  Rc5 {[%clk 0:01:08]} 31. Rd4 {[%clk 0:00:49]}  Nd5 {[%clk 0:01:02]} 32. Red3 {[%clk 0:00:31]}  Rxc3 {[%clk 0:01:02]} 33. Rxc3 {[%clk 0:00:25]}  Qxd4 {[%clk 0:01:02]} 34. Rc8 {[%clk 0:00:22]}  Qa1+ {[%clk 0:00:57]} 35. Kd2 {[%clk 0:00:22]}  Qd4+ {[%clk 0:00:56]} 36. Ke2 {[%clk 0:00:19]}  Qb4 {[%clk 0:00:47]} 37. Kf1 {[%clk 0:00:15]}  Qe7 {[%clk 0:00:32]} 38. Qc6 {[%clk 0:00:12]}  Nf4 {[%clk 0:00:26]} 39. Qe4 {[%clk 0:00:11]}  Rxc8 {[%clk 0:00:16]} 40. Qxe7 {[%clk 0:00:11]}  Rc1+ {[%clk 0:00:17]} 41. Qe1 {[%clk 0:00:11]}  Rxe1+ {[%clk 0:00:18]} 42. Kxe1 {[%clk 0:00:12]}  g6 {[%clk 0:00:18]} 43. hxg6 {[%clk 0:00:12]}  fxg6 {[%clk 0:00:19]} 44. Bd7 {[%clk 0:00:12]}  a6 {[%clk 0:00:18]} 45. g5 {[%clk 0:00:09]}  Kg7 {[%clk 0:00:17]} 46. Kd2 {[%clk 0:00:10]}  Kf7 {[%clk 0:00:18]} 47. Ke3 {[%clk 0:00:10]}  Ng2+ {[%clk 0:00:15]} 48. Ke4 {[%clk 0:00:08]}  Ke7 {[%clk 0:00:14]} 49. Bg4 {[%clk 0:00:07]}  a5 {[%clk 0:00:13]} 50. Bd1 {[%clk 0:00:07]}  Kd6 {[%clk 0:00:08]} 51. f4 {[%clk 0:00:07]}  Ke6 {[%clk 0:00:07]} 52. Be2 {[%clk 0:00:04]}  a4 {[%clk 0:00:07]} 53. Bxb5 {[%clk 0:00:04]}  a3 {[%clk 0:00:07]} 54. b4 {[%clk 0:00:05]}  Kd6 {[%clk 0:00:06]} 55. Bc4 {[%clk 0:00:05]}  Ne1 {[%clk 0:00:07]} 56. Bb3 {[%clk 0:00:04]}  Nc2 {[%clk 0:00:06]} 57. f5 {[%clk 0:00:04]}  gxf5+ {[%clk 0:00:07]} 58. Kf4 {[%clk 0:00:04]}  Nd4 {[%clk 0:00:07]} 59. Ba2 {[%clk 0:00:03]}  Ke7 {[%clk 0:00:06]} 60. Ke5 {[%clk 0:00:03]}  Nb5 {[%clk 0:00:06]} 61. Kxf5 {[%clk 0:00:03]}  Nc3 {[%clk 0:00:06]} 62. Bb3 {[%clk 0:00:03]}  a2 {[%clk 0:00:07]} 63. Bxa2 {[%clk 0:00:04]}  Nxa2 {[%clk 0:00:07]} 64. b5 {[%clk 0:00:04]}  Nb4 {[%clk 0:00:08]} 65. b6 {[%clk 0:00:05]}  Na6 {[%clk 0:00:08]} 66. b7 {[%clk 0:00:05]}  Kf7 {[%clk 0:00:09]} 67. Ke5 {[%clk 0:00:05]}  Kg6 {[%clk 0:00:09]} 68. Kf4 {[%clk 0:00:05]}  Nb8 {[%clk 0:00:09]} 69. Ke5 {[%clk 0:00:06]}  Na6 {[%clk 0:00:10]} 70. Kd6 {[%clk 0:00:06]}  Nb8 {[%clk 0:00:11]} 71. Kc7 {[%clk 0:00:07]}  Na6+ {[%clk 0:00:11]} 72. Kb6 {[%clk 0:00:07]}  Nb8 {[%clk 0:00:12]} 73. Ka7 {[%clk 0:00:08]}  Nc6+ {[%clk 0:00:12]} 74. Kb6 {[%clk 0:00:09]}  Nb8 {[%clk 0:00:13]} 75. Kc7 {[%clk 0:00:09]}  Na6+ {[%clk 0:00:13]} 76. Kc8 {[%clk 0:00:10]}  Kxg5 {[%clk 0:00:13]} 77. b8=Q {[%clk 0:00:11]}  Nxb8 {[%clk 0:00:14]} 1/2-1/2


[Site "https://www.chess.com"]